bitfinex/quotes_SOLUSD_20240825
["timestamp","ask_amount","ask_price","bid_price","bid_amount"]
[1724554533601,21.6766,159.02,158.94,9.7631095]
[1724554537301,21.6766,159.02,158.95,45.0]
[1724554537524,21.6766,159.02,158.96,1.25788762]
[1724554538602,21.6766,159.02,158.96,5.82377449]
[1724554538803,21.6766,159.02,158.96,4.56588687]
[1724554539728,21.6766,159.02,158.95,45.0]
[1724554540206,21.6766,159.02,158.96,4.56576941]
[1724554542625,21.6766,159.02,158.95,45.0]
[1724554544745,21.6766,159.02,158.98,9.7631095]
[1724554544946,6.54951532,159.04,159.0,9.7631095]
[1724554545126,6.54951532,159.04,159.01,1.25759418]
[1724554545327,6.54951532,159.04,159.02,11.02064263]
[1724554545520,22.1565,159.06,159.02,11.02064263]
[1724554545757,6.54793572,159.11,159.03,45.0]
[1724554546625,20.0,159.1,159.03,45.0]
[1724554548336,6.54793572,159.11,159.04,11.0203307]
[1724554548527,6.54793572,159.11,159.06,9.7631095]
[1724554548732,22.3643,159.12,159.07,46.25700422]
[1724554548953,22.3643,159.12,159.08,1.25699208]
[1724554549926,22.3643,159.12,159.07,54.7631095]
[1724554550250,22.3643,159.12,158.98,1.25699475]
[1724554550251,22.3643,159.12,159.05,9.7631095]
[1724554550427,22.3643,159.12,159.03,9.7631095]
[1724554550628,9.7631095,159.11,159.03,9.7631095]
[1724554550842,9.7631095,159.11,159.01,9.7631095]
[1724554551146,9.7631095,159.11,159.02,20.0]
[1724554552025,9.7631095,159.11,159.03,45.0]
[1724554554333,28.6489,159.12,159.03,45.0]
[1724554554538,38.4120095,159.12,159.03,45.0]
[1724554554841,22.3643,159.12,159.03,54.7631095]
[1724554555455,22.3643,159.12,159.04,9.7631095]
[1724554555645,22.3643,159.12,159.05,45.0]
[1724554557754,22.3643,159.12,159.02,29.7631095]
[1724554557755,32.1274095,159.12,159.02,29.7631095]
[1724554557959,32.1274095,159.12,159.03,45.0]
[1724554558458,9.7631095,159.1,159.02,20.0]
[1724554559744,9.7631095,159.1,159.03,45.0]
[1724554563769,6.54656486,159.11,159.03,45.0]
[1724554566771,6.54656486,159.11,159.02,20.0]
[1724554566772,9.7631095,159.1,159.02,20.0]
[1724554566950,9.7631095,159.1,159.01,9.7631095]
[1724554567249,9.7631095,159.1,159.02,45.0]
[1724554567865,9.7631095,159.1,159.01,9.7631095]
[1724554568441,16.5717,159.09,159.01,9.7631095]
[1724554569880,16.5717,159.09,159.02,1.25741262]
[1724554570356,16.5717,159.09,159.03,1.25741569]
[1724554570676,16.5717,159.09,159.01,9.7631095]
[1724554573272,6.0222,159.08,158.96,29.63642959]
[1724554573451,9.7631095,159.07,158.97,9.7631095]
[1724554573649,16.5717,159.06,158.97,9.7631095]
[1724554573852,23.12627742,159.06,158.97,9.7631095]
[1724554575172,23.12627742,159.06,158.98,45.0]
[1724554587386,23.12627742,159.06,158.99,9.7631095]
[1724554587567,16.5717,159.06,159.0,46.25749306]
[1724554587764,16.5717,159.06,159.0,45.0]
[1724554606604,16.5717,159.06,159.01,9.7631095]
[1724554606803,16.5717,159.06,159.03,9.7631095]
[1724554607102,16.5717,159.06,159.04,1.2573395]
[1724554608492,6.0222,159.08,159.04,1.2573395]
[1724554612092,6.0222,159.08,159.05,1.25731187]
[1724554613496,6.0222,159.08,159.04,54.7631095]
[1724554615402,6.0222,159.08,159.05,1.25722846]
[1724554616395,23.1975834,159.1,159.06,1.25722812]
[1724554616582,16.6434,159.1,159.06,11.02033762]
[1724554616784,16.6434,159.1,159.07,45.0]
[1724554618009,16.6434,159.1,159.04,9.7631095]
[1724554618311,16.6434,159.1,159.02,9.7631095]
[1724554618518,16.6434,159.1,159.03,20.0]
[1724554619711,16.6434,159.1,159.04,45.0]
[1724554625792,16.6434,159.1,159.05,1.25723021]
[1724554626391,16.6434,159.1,159.04,45.0]
[1724554629401,16.6434,159.1,158.98,9.22455767]
[1724554629615,16.6434,159.1,158.99,9.7631095]
[1724554629616,15.9892095,159.09,158.99,9.7631095]
[1724554629816,15.9892095,159.09,158.98,7.20120419]
[1724554630025,15.9892095,159.09,158.99,9.7631095]
[1724554630324,22.2750095,159.09,158.99,9.7631095]
[1724554630629,15.9892095,159.09,158.99,9.7631095]
[1724554630791,15.9892095,159.09,159.0,45.0]
[1724554631496,9.7631095,159.07,158.98,7.20120419]
[1724554631801,9.7631095,159.06,158.96,9.7631095]
[1724554632412,16.0501095,159.06,158.96,9.7631095]
[1724554632795,16.3284,159.05,158.96,9.7631095]
[1724554632997,16.3284,159.05,158.97,20.0]
[1724554633903,16.3284,159.05,158.98,45.0]
[1724554634105,15.9892095,159.04,158.94,16.96431369]
[1724554635505,15.9892095,159.04,158.95,45.0]
[1724554636828,6.2261,159.04,158.96,9.7631095]
[1724554637033,6.2261,159.04,158.97,45.0]
[1724554638230,6.2261,159.04,158.98,9.7631095]
[1724554638924,6.2261,159.04,158.97,45.0]
[1724554647333,6.2261,159.04,158.96,45.0]
[1724554650839,15.9892095,159.04,158.95,54.7631095]
[1724554656048,6.2261,159.04,158.95,54.7631095]
[1724554666829,6.2261,159.04,158.96,1.25775091]
[1724554668951,6.2261,159.04,158.97,9.7631095]
[1724554669252,6.2261,159.04,158.98,46.25769841]
[1724554669457,6.2261,159.04,158.99,1.25770218]
[1724554672434,6.2261,159.04,158.98,45.0]
[1724554675059,6.2261,159.04,158.99,1.25764554]
[1724554676443,6.2261,159.04,158.99,9.7631095]
[1724554683269,6.2261,159.04,158.98,45.0]
[1724554694473,6.2261,159.04,158.99,4.56651725]
[1724554694773,6.2261,159.04,159.0,4.56651725]
[1724554694982,6.2261,159.04,158.98,45.0]
[1724554704471,6.2261,159.04,158.91,9.18653113]
[1724554704676,25.0624095,159.03,158.92,20.0]
[1724554704986,25.0624095,159.03,158.94,9.7631095]
[1724554705179,25.0624095,159.03,158.95,20.0]
[1724554706474,25.0624095,159.03,158.96,45.0]
[1724554710682,15.2993,159.03,158.97,1.25788259]
[1724554717470,15.2993,159.03,158.96,45.0]
[1724554730314,15.2993,159.03,158.91,7.20120419]
[1724554730613,16.2803095,159.02,158.92,9.7631095]
[1724554731783,16.2803095,159.02,158.93,65.0]
[1724554732399,16.139,159.01,158.93,65.0]
[1724554732913,22.69084332,159.01,158.93,65.0]
[1724554734292,22.69084332,159.01,158.93,45.0]
[1724554734624,22.69084332,159.01,158.92,54.7631095]
[1724554734921,22.69084332,159.01,158.93,20.0]
[1724554735079,22.69084332,159.01,158.94,45.0]
[1724554741410,16.139,159.01,158.96,9.7631095]
[1724554762232,16.10186408,159.01,158.96,9.7631095]
[1724554765027,16.10186408,159.01,158.97,1.2578597]
[1724554765334,16.10186408,159.01,158.98,9.7631095]
[1724554768256,6.5172,159.02,158.98,9.7631095]
[1724554768542,6.5172,159.02,158.99,45.0]
[1724554772751,22.45885821,159.05,158.99,45.0]
[1724554773561,22.45885821,159.05,159.0,9.7631095]
[1724554773859,22.45885821,159.05,159.01,1.25756145]
[1724554774365,15.9126,159.05,159.01,1.25756145]
[1724554776658,15.9126,159.05,159.0,9.7631095]
[1724554777951,15.9126,159.05,159.01,1.25756245]
[1724554779190,15.9126,159.05,159.02,11.02067232]
[1724554779343,15.9126,159.05,159.02,9.7631095]
[1724554779538,15.9126,159.05,159.03,1.25745452]
[1724554785070,6.0719,159.06,159.03,1.25745452]
[1724554791553,6.0719,159.06,159.04,9.7631095]
[1724554792468,16.5011,159.09,159.04,9.7631095]
[1724554793559,16.5011,159.09,159.05,1.25739478]
[1724554794259,16.5011,159.09,159.04,9.7631095]
[1724554802353,32.5500095,159.09,158.97,7.20120419]
[1724554802568,9.7631095,159.07,158.98,20.0]
[1724554802768,9.7631095,159.07,158.98,29.7631095]
[1724554802973,16.33659665,159.07,158.98,29.7631095]
[1724554803374,16.33659665,159.07,158.98,20.0]
[1724554803674,15.3135,159.06,158.98,9.7631095]
[1724554803990,15.3135,159.06,158.99,20.0]
[1724554804879,15.3135,159.06,159.0,45.0]
[1724554805489,15.3135,159.06,158.99,45.0]
[1724554805683,15.3135,159.06,159.0,20.0]
[1724554807394,15.3135,159.06,159.0,31.02077387]
[1724554808477,15.3135,159.06,159.0,29.7631095]
[1724554808687,15.3135,159.06,159.02,9.7631095]
[1724554808895,15.3135,159.06,159.03,45.0]
[1724554809218,15.3135,159.06,159.02,9.7631095]
[1724554812311,15.3135,159.06,159.03,45.0]
[1724554817914,6.5581,159.08,159.04,11.02053855]
[1724554818285,6.5581,159.08,159.05,1.25734255]
[1724554818486,6.5581,159.08,159.05,45.0]
[1724554820190,16.5262,159.1,159.06,11.02032053]
[1724554820993,6.6606,159.12,159.06,11.02032053]
[1724554821194,6.6606,159.12,159.07,49.55306789]
[1724554821412,6.6606,159.12,159.07,45.0]
[1724554821611,6.6606,159.12,159.08,4.55220723]
[1724554821784,6.6606,159.12,159.07,45.0]
[1724554821987,6.6606,159.12,159.08,4.55219224]
[1724554822188,6.6606,159.12,159.07,45.0]
[1724554840227,6.6606,159.12,159.06,45.0]
[1724554847637,23.09751572,159.14,159.09,9.7631095]
[1724554847942,15.6997,159.24,159.09,9.7631095]
[1724554847943,6.0783,159.2,159.13,9.7631095]
[1724554848154,6.0783,159.2,159.09,23.07080419]
[1724554848155,6.0783,159.2,159.15,9.7631095]
[1724554851930,6.0783,159.2,159.13,9.7631095]
[1724554852125,9.7631095,159.19,159.06,6.1213]
[1724554852327,9.7631095,159.19,159.05,15.8696]
[1724554852328,16.0460095,159.17,159.07,9.7631095]
[1724554852565,16.0460095,159.17,159.01,11.87634078]
[1724554852566,9.7631095,159.15,159.06,7.33046543]
[1724554852847,9.7631095,159.15,159.04,9.7631095]
[1724554852848,16.0464095,159.15,159.04,9.7631095]
[1724554853754,9.7631095,159.13,159.04,9.7631095]
[1724554855019,9.7631095,159.13,159.05,45.0]
[1724554858459,16.33232755,159.13,159.04,45.0]
[1724554858622,16.33232755,159.13,159.05,20.0]
[1724554861564,16.4773,159.12,159.05,20.0]
[1724554863059,16.4773,159.12,159.04,45.0]
[1724554863262,9.7631095,159.11,159.03,45.0]
[1724554863435,6.592,159.1,159.0,9.7631095]
[1724554863949,6.592,159.1,159.01,20.0]
[1724554864148,6.592,159.1,159.01,27.33918447]
[1724554864543,6.592,159.1,159.01,20.0]
[1724554864851,6.592,159.1,159.02,45.0]
[1724554866750,12.8774,159.1,159.02,45.0]
[1724554866959,32.5261095,159.09,158.98,7.20120419]
[1724554867157,6.2861,159.08,158.99,20.0]
[1724554868139,32.5261095,159.09,158.99,20.0]
[1724554868347,32.5261095,159.09,159.0,45.0]
[1724554868728,6.57352457,159.08,159.0,45.0]
[1724554874158,16.33663407,159.08,159.0,45.0]
[1724554876085,16.33663407,159.08,159.0,46.25767219]
[1724554877779,16.33663407,159.08,159.0,45.0]
[1724554882582,22.62283407,159.08,159.0,45.0]
[1724554883183,9.7631095,159.06,159.0,45.0]
[1724554884959,6.57397112,159.07,159.0,45.0]
[1724554885290,16.33708062,159.07,159.0,45.0]
[1724554892597,22.62368062,159.07,159.0,45.0]
[1724554892771,6.5916,159.06,158.96,9.7631095]
[1724554893082,24.9464095,159.05,158.97,65.0]
[1724554893282,24.9464095,159.05,158.97,20.0]
[1724554893666,24.9464095,159.05,158.95,20.0]
[1724554894079,6.57470114,159.04,158.95,20.0]
[1724554894274,6.57470114,159.04,158.95,9.7631095]
[1724554894481,6.57470114,159.04,158.96,65.0]
[1724554896197,6.57470114,159.04,158.97,11.02097994]
[1724554896404,6.57470114,159.04,158.98,45.0]
[1724554896577,6.57470114,159.04,158.99,1.25782063]
[1724554898988,6.57470114,159.04,158.98,46.25779385]
[1724554900598,16.33781064,159.04,158.98,45.0]
[1724554900810,16.33781064,159.04,158.97,45.0]
[1724554908775,6.57470114,159.04,158.97,45.0]
[1724554909188,6.57470114,159.04,158.98,4.55101226]
[1724554909609,6.57470114,159.04,158.98,5.80887904]
[1724554909915,6.57470114,159.04,158.98,4.55101226]
[1724554911317,6.57470114,159.04,158.97,45.0]
[1724554911494,6.57470114,159.04,158.98,4.5509456]
[1724554911698,6.57470114,159.04,158.97,45.0]
[1724554912011,6.57470114,159.04,158.98,7.27503541]
[1724554912187,6.57470114,159.04,158.97,45.0]
[1724554912387,6.57470114,159.04,158.98,7.27498912]
[1724554912699,6.57470114,159.04,158.97,45.0]
[1724554913021,6.57470114,159.04,158.98,7.27491153]
[1724554913315,6.57470114,159.04,158.97,45.0]
[1724554913487,6.57470114,159.04,158.98,7.27511178]
[1724554913813,6.57470114,159.04,158.97,45.0]
[1724554914015,6.57470114,159.04,158.98,7.27497293]
[1724554914215,6.57470114,159.04,158.99,4.55095373]
[1724554914515,6.57470114,159.04,158.98,2.72401604]
[1724554914700,6.57470114,159.04,158.99,4.55096763]
[1724554914897,6.57470114,159.04,158.97,45.0]
[1724554915209,15.1833,159.05,158.98,7.27492335]
[1724554915387,15.1833,159.05,158.99,4.55089952]
[1724554915585,15.1833,159.05,158.98,2.72397305]
[1724554915798,15.1833,159.05,158.99,4.5508927]
[1724554915999,15.1833,159.05,158.98,2.72402136]
[1724554916310,15.1833,159.05,158.99,4.55096367]
[1724554916607,15.1833,159.05,158.98,2.72397441]
[1724554916820,15.1833,159.05,158.99,4.55089511]
[1724554917012,15.1833,159.05,158.98,2.72397263]
[1724554917188,15.1833,159.05,158.97,45.0]
[1724554917189,15.1833,159.05,158.99,4.55089385]
[1724554917388,15.1833,159.05,158.97,45.0]
[1724554917687,15.1833,159.05,158.98,2.72402192]
[1724554918008,15.1833,159.05,158.99,4.55096539]
[1724554918223,15.1833,159.05,158.97,45.0]
[1724554918397,15.1833,159.05,158.98,4.55096154]
[1724554918597,15.1833,159.05,158.99,4.55096154]
[1724554918828,15.1833,159.05,158.97,45.0]
[1724554919026,15.1833,159.05,158.98,4.550471]
[1724554919234,15.1833,159.05,158.99,4.550471]
[1724554919425,15.1833,159.05,158.97,45.0]
[1724554919616,15.1833,159.05,158.98,4.55040093]
[1724554919815,15.1833,159.05,158.99,4.55040093]
[1724554920128,6.57469036,159.04,158.97,45.0]
[1724554920309,6.57469036,159.04,158.98,11.89127643]
[1724554920625,9.7631095,159.02,158.91,7.20120419]
[1724554920835,16.2301,159.01,158.99,4.55044275]
[1724554921014,16.2301,159.01,158.93,7.34192678]
[1724554921326,16.2301,159.01,158.94,31.89236953]
[1724554921534,16.2301,159.01,158.95,11.89236953]
[1724554921845,16.2301,159.01,158.96,4.55044275]
[1724554922015,16.2301,159.01,158.95,7.34192678]
[1724554922210,16.2301,159.01,158.96,4.5529992]
[1724554922419,16.2301,159.01,158.92,9.7631095]
[1724554922420,16.2301,159.01,158.93,20.0]
[1724554922613,16.2301,159.01,158.94,4.55318335]
[1724554922812,16.2301,159.01,158.95,4.55318869]
[1724554923040,16.2301,159.01,158.96,4.55318869]
[1724554923248,16.2301,159.01,158.94,7.34543769]
[1724554923537,16.2301,159.01,158.95,4.55340338]
[1724554923735,16.2301,159.01,158.96,4.55340338]
[1724554924031,16.2301,159.01,158.94,14.69093244]
[1724554924238,16.2301,159.01,158.95,4.55322817]
[1724554924538,16.2301,159.01,158.96,4.55322817]
[1724554924734,16.2301,159.01,158.94,7.34549475]
[1724554924921,16.2301,159.01,158.95,4.55297115]
[1724554925126,16.2301,159.01,158.94,7.34549475]
[1724554925323,6.3121,159.0,158.95,4.55291825]
[1724554925520,16.0752095,159.0,158.94,7.34549475]
[1724554925708,16.0752095,159.0,158.95,4.55292151]
[1724554925911,16.0752095,159.0,158.92,20.0]
[1724554926229,16.0752095,159.0,158.93,49.5530485]
[1724554926409,16.0752095,159.0,158.93,45.0]
[1724554926610,16.0752095,159.0,158.92,45.0]
[1724554926816,16.0752095,159.0,158.93,4.55435433]
[1724554927019,16.0752095,159.0,158.92,45.0]
[1724554927213,16.0752095,159.0,158.93,4.55437454]
[1724554927939,16.0752095,159.0,158.92,45.0]
[1724554928237,16.0752095,159.0,158.93,4.55425788]
[1724554929542,6.3121,159.0,158.93,4.55425788]
[1724554930330,6.57321887,158.99,158.93,4.55432611]
[1724554930637,6.57321887,158.99,158.94,1.25821322]
[1724554930828,6.3121,159.0,158.94,49.55432611]
[1724554931036,6.3121,159.0,158.94,45.0]
[1724554931221,6.3121,159.0,158.93,45.0]
[1724554931423,6.3121,159.0,158.94,4.55282117]
[1724554931633,6.3121,159.0,158.95,45.0]
[1724554946054,6.3121,159.0,158.96,5.8106368]
[1724554948061,6.3121,159.0,158.96,1.25798538]
[1724554948267,6.3121,159.0,158.96,5.81091716]
[1724554951646,6.3121,159.0,158.96,1.25798538]
[1724554951978,6.3121,159.0,158.96,5.81039507]
[1724554953365,6.3121,159.0,158.96,1.25798538]
[1724554957053,6.3121,159.0,158.95,45.0]
[1724554957286,6.3121,159.0,158.96,4.55062134]
[1724554957453,6.3121,159.0,158.95,7.34153928]
[1724554958073,6.3121,159.0,158.96,4.5507783]
[1724554958279,16.0752095,159.0,158.95,7.34153928]
[1724554958455,16.0752095,159.0,158.92,11.8956469]
[1724554958653,16.0752095,159.0,158.93,4.55244249]
[1724554958878,22.64969539,159.0,158.94,4.55244249]
[1724554959081,22.64969539,159.0,158.92,7.34320441]
[1724554959267,22.64969539,159.0,158.93,4.55259781]
[1724554959466,9.7631095,158.98,158.94,4.55259781]
[1724554959789,9.7631095,158.98,158.92,7.34320441]
[1724554959961,9.7631095,158.98,158.93,4.55275302]
[1724554960161,9.7631095,158.98,158.94,4.55275302]
[1724554960352,9.7631095,158.98,158.92,7.34320441]
[1724554960554,9.7631095,158.98,158.93,4.55263211]
[1724554960763,9.7631095,158.98,158.94,4.55263211]
[1724554961064,9.7631095,158.98,158.92,7.34471695]
[1724554961265,9.7631095,158.98,158.93,4.55274058]
[1724554961484,9.7631095,158.98,158.92,7.34471695]
[1724554961673,9.7631095,158.98,158.91,20.0]
[1724554961886,9.7631095,158.98,158.92,45.0]
[1724554962180,9.7631095,158.98,158.91,45.0]
[1724554963158,22.64969539,159.0,158.92,1.25826154]
[1724554966462,12.88658589,159.0,158.92,11.02137104]
[1724554966665,12.88658589,159.0,158.93,45.0]
[1724554966909,12.88658589,159.0,158.94,1.25809305]
[1724554967889,12.88658589,159.0,158.93,45.0]
[1724554968067,12.88658589,159.0,158.94,1.25807748]
[1724554968463,12.88658589,159.0,158.93,45.0]
[1724554978085,12.88658589,159.0,158.94,2.72861262]
[1724554978406,12.88658589,159.0,158.95,2.72861262]
[1724554978610,12.88658589,159.0,158.96,2.72861262]
[1724554978791,12.88658589,159.0,158.93,45.0]
[1724554978996,22.64969539,159.0,158.94,2.72881596]
[1724554979200,22.64969539,159.0,158.95,2.72881596]
[1724554979426,22.64969539,159.0,158.91,9.7631095]
[1724554979713,22.64969539,159.0,158.92,48.98810029]
[1724554981519,16.4184,158.99,158.92,45.0]
[1724554981812,16.4184,158.99,158.91,45.0]
[1724554982391,16.4184,158.99,158.92,2.72994233]
[1724554982609,16.4184,158.99,158.93,2.72994233]
[1724554982785,16.4184,158.99,158.94,2.72994233]
[1724554982990,16.4184,158.99,158.91,45.0]
[1724554982991,16.4184,158.99,158.95,2.72994233]
[1724554983315,16.4184,158.99,158.91,45.0]
[1724554983521,16.4184,158.99,158.92,2.7299181]
[1724554983680,16.4184,158.99,158.93,2.7299181]
[1724554983884,16.4184,158.99,158.94,2.7299181]
[1724554984114,16.4184,158.99,158.95,2.7299181]
[1724554984313,16.4184,158.99,158.91,45.0]
[1724554984618,16.4184,158.99,158.92,2.72980792]
[1724554984813,16.4184,158.99,158.93,2.72980792]
[1724554985000,16.4184,158.99,158.94,2.72980792]
[1724554985200,16.4184,158.99,158.95,2.72980792]
[1724554985402,16.4184,158.99,158.91,45.0]
[1724554985596,16.4184,158.99,158.92,2.73008833]
[1724554985807,16.4184,158.99,158.93,2.73008833]
[1724554985999,16.4184,158.99,158.94,2.73008833]
[1724554986198,16.4184,158.99,158.91,45.0]
[1724554986415,16.4184,158.99,158.92,2.73021792]
[1724554986623,16.4184,158.99,158.93,2.73021792]
[1724554986794,16.4184,158.99,158.94,2.73021792]
[1724554986994,16.4184,158.99,158.91,45.0]
[1724554987202,16.4184,158.99,158.92,2.73030549]
[1724554987522,16.4184,158.99,158.93,2.73030549]
[1724554987710,9.7631095,158.98,158.91,45.0]
[1724554988232,16.4184,158.99,158.94,2.7303039]
[1724554988523,16.4184,158.99,158.91,45.0]
[1724554988895,16.4184,158.99,158.92,2.73031776]
[1724554989221,16.4184,158.99,158.93,2.73031776]
[1724554989521,16.4184,158.99,158.91,45.0]
[1724554992697,16.32997307,158.98,158.91,45.0]
[1724554994010,16.4184,158.95,158.85,23.39790302]
[1724554994224,9.7631095,158.94,158.84,9.7631095]
[1724554995105,9.7631095,158.94,158.82,20.0]
[1724554995323,9.7631095,158.94,158.84,9.7631095]
[1724554995629,9.7631095,158.94,158.85,65.0]
[1724554995838,6.6121,158.93,158.85,65.0]
[1724554999304,6.6121,158.93,158.86,9.7631095]
[1724554999508,6.6121,158.93,158.87,65.0]
[1724555007846,6.6121,158.93,158.88,11.02167261]
[1724555008019,6.6121,158.93,158.89,45.0]
[1724555010145,6.6121,158.93,158.88,45.0]
[1724555011445,6.10860702,158.93,158.88,45.0]
[1724555016964,16.4184,158.95,158.89,11.02151542]
[1724555017262,16.4184,158.95,158.9,65.0]
[1724555017427,16.4184,158.95,158.91,1.25826137]
[1724555017628,16.4184,158.95,158.9,65.0]
[1724555021457,16.4184,158.95,158.91,4.5612917]
[1724555021661,16.4184,158.95,158.92,4.5612917]
[1724555021842,16.4184,158.95,158.91,4.5612917]
[1724555022135,16.4184,158.95,158.92,4.5612917]
[1724555022438,16.4184,158.95,158.91,7.35853052]
[1724555022639,16.4184,158.95,158.92,4.56161681]
[1724555022839,16.4184,158.95,158.91,7.35853052]
[1724555023051,16.4184,158.95,158.92,4.56161952]
[1724555023256,16.4184,158.95,158.91,7.35853052]
[1724555023463,16.4184,158.95,158.92,4.56171994]
[1724555023759,16.4184,158.95,158.91,7.35853052]
[1724555023962,16.4184,158.95,158.92,4.56176524]
[1724555024138,16.4184,158.95,158.91,7.35853052]
[1724555024338,16.4184,158.95,158.92,4.5617664]
[1724555024542,16.4184,158.95,158.91,7.35853052]
[1724555024766,16.4184,158.95,158.92,4.56176834]
[1724555024964,16.4184,158.95,158.91,7.35853052]
[1724555025277,16.4184,158.95,158.9,65.0]
[1724555025480,16.4184,158.95,158.92,4.56176679]
[1724555025680,16.4184,158.95,158.91,11.92106684]
[1724555025849,16.4184,158.95,158.92,4.56186136]
[1724555026174,16.4184,158.95,158.91,7.35930005]
[1724555028349,16.4184,158.95,158.9,65.0]
[1724555028570,16.4184,158.95,158.91,7.35847758]
[1724555030363,16.4184,158.95,158.9,65.0]
[1724555041198,16.4184,158.95,158.9,74.7631095]
[1724555041406,16.4184,158.95,158.9,65.0]
[1724555041699,16.4184,158.95,158.84,18.60134575]
[1724555042021,26.1815095,158.95,158.85,29.7631095]
[1724555042206,6.5670191,158.94,158.87,9.7631095]
[1724555042383,6.5670191,158.94,158.88,20.0]
[1724555043771,6.5670191,158.94,158.89,45.0]
[1724555049718,6.5670191,158.94,158.9,2.7313502]
[1724555049890,6.5670191,158.94,158.89,45.0]
[1724555050206,6.5670191,158.94,158.9,2.7314391]
[1724555050410,6.5670191,158.94,158.88,45.0]
[1724555050915,6.5670191,158.94,158.89,2.73145056]
[1724555051089,6.5670191,158.94,158.88,45.0]
[1724555051915,6.5670191,158.94,158.86,9.7631095]
[1724555052211,6.5670191,158.94,158.87,20.0]
[1724555054312,6.5670191,158.94,158.88,45.0]
[1724555055222,6.5670191,158.94,158.86,9.7631095]
[1724555055223,6.4825,158.93,158.86,9.7631095]
[1724555055515,6.4825,158.93,158.87,45.0]
[1724555056217,6.4825,158.93,158.88,1.25862242]
[1724555056601,6.4825,158.93,158.87,45.0]
[1724555058590,6.4825,158.93,158.88,1.25862238]
[1724555058791,6.4825,158.93,158.87,45.0]
[1724555059907,6.4825,158.93,158.88,1.25849401]
[1724555060223,6.4825,158.93,158.87,45.0]
[1724555071741,16.2456095,158.93,158.81,25.51655158]
[1724555071945,16.2361,158.92,158.83,9.7631095]
[1724555072117,16.2361,158.92,158.84,65.0]
[1724555072816,6.0322,158.9,158.81,19.36415158]
[1724555073041,6.0322,158.9,158.8,267.2891376]
[1724555073216,6.0322,158.9,158.81,20.0]
[1724555073542,12.59489521,158.9,158.81,20.0]
[1724555074112,16.2361,158.89,158.81,20.0]
[1724555075743,25.9992095,158.89,158.81,20.0]
[1724555076248,25.9992095,158.89,158.81,21.25917355]
[1724555076620,25.9992095,158.89,158.8,20.8260281]
[1724555076822,25.9992095,158.89,158.81,1.25917352]
[1724555077020,25.9992095,158.89,158.81,1.25909029]
[1724555077241,25.9992095,158.89,158.81,46.25909029]
[1724555083835,6.55918747,158.88,158.81,46.25909029]
[1724555084548,6.55918747,158.88,158.81,54.7631095]
[1724555085856,6.55918747,158.88,158.82,1.25897167]
[1724555086032,6.55918747,158.88,158.83,1.25897068]
[1724555087165,6.55918747,158.88,158.81,54.7631095]
[1724555090054,6.55918747,158.88,158.8,20.8260281]
[1724555090055,6.1551,158.87,158.8,20.8260281]
[1724555090934,6.1551,158.87,158.8,0.8260281]
[1724555091135,6.1551,158.87,158.8,20.8260281]
[1724555091451,6.1551,158.87,158.8,0.8260281]
[1724555091652,6.1551,158.87,158.8,65.8260281]
[1724555095758,6.1551,158.87,158.81,11.02213114]
[1724555095938,6.1551,158.87,158.82,45.0]
[1724555099663,6.1551,158.87,158.8,20.8260281]
[1724555099972,6.1551,158.87,158.81,45.0]
[1724555103861,6.1551,158.87,158.82,1.25905666]
[1724555105570,6.1551,158.87,158.81,54.7631095]
[1724555105778,6.1551,158.87,158.83,9.7631095]
[1724555105988,6.1551,158.87,158.84,45.0]
[1724555112276,6.1551,158.87,158.85,2.73213444]
[1724555113663,6.1551,158.87,158.81,22.73213444]
[1724555113865,6.1551,158.87,158.82,47.73213444]
[1724555114080,6.1551,158.87,158.83,2.73213444]
[1724555114281,6.1551,158.87,158.84,2.73196762]
[1724555114674,6.1551,158.87,158.85,2.73196762]
[1724555114874,6.1551,158.87,158.83,2.73196762]
[1724555115172,6.1551,158.87,158.84,2.73196762]
[1724555115372,6.1551,158.87,158.85,2.73196762]
[1724555115588,6.1551,158.87,158.82,45.0]
[1724555115892,6.1551,158.87,158.83,2.7320165]
[1724555116098,6.1551,158.87,158.84,2.7320165]
[1724555116296,6.1551,158.87,158.85,2.7320165]
[1724555116479,6.1551,158.87,158.86,2.7320165]